[Event "NOR-ch Elite 2019"]
[Site "Larvik"]
[Date "2019.07.06"]
[Round "2.13"]
[White "Risting, Eivind Olav"]
[Black "Altarbosh, Ward"]
[Result "1-0"]
[ECO "D46"]
[WhiteElo "2314"]
[BlackElo "2202"]
[Annotator "NA"]
[PlyCount "80"]
[EventDate "2019.07.05"]
[EventType "swiss"]
[EventCountry "NOR"]
[SourceTitle "playchess.com"]
[Source "ChessBase"]
[SourceQuality "1"]
[TimeControl "40/5400+30:1800+30"]

1. d4 {[%emt 0:00:00]} d5 {[%emt 0:00:00]} 2. c4 {[%emt 0:00:00]} c6 {[%emt 0:00:00]} 3. Nc3 {[%emt 0:00:03]} Nf6 {[%emt 0:00:00]} 4. e3 {[%emt 0:00:19]} e6 {[%emt 0:00:00]} 5. Nf3 {[%emt 0:00:32]} Nbd7 {[%emt 0:00:00]} 6. Qc2 {[%emt 0:00:08]} Bd6 {[%emt 0:00:01]} 7. Bd3 {[%emt 0:00:23]} dxc4 {[%emt 0:00:17]} 8. Bxc4 {[%emt 0:00:08]} b5 {[%emt 0:00:03]} 9. Be2 {[%emt 0:00:32]} O-O {[%emt 0:00:28]} 10. O-O {[%emt 0:00:08]} Bb7 {[%emt 0:00:03]} 11. e4 {[%emt 0:00:17]} e5 {[%emt 0:00:06]} 12. dxe5 {[%emt 0:00:06]} Nxe5 {[%emt 0:00:03]} 13. Nh4 {[%emt 0:00:13]} b4 {[%emt 0:08:37]} 14. Nf5 {[%emt 0:00:22]} Neg4 {[%emt 0:14:04]} 15. Bxg4 {[%emt 0:31:53]} Nxg4 {[%emt 0:00:25]} 16. h3 {[%emt 0:08:00]} Bh2+ {[%emt 0:12:33]} 17. Kh1 {[%emt 0:00:18]} bxc3 {[%emt 0:01:19]} 18. hxg4 {[%emt 0:00:39]} Be5 {[%emt 0:00:26]} 19. f4 {[%emt 0:02:23]} Bc7 {[%emt 0:09:00]} 20. Qxc3 {[%emt 0:02:47]} Qf6 {[%emt 0:03:23]} 21. e5 {[%emt 0:13:42]} Qe6 {[%emt 0:02:43]} 22. Be3 {[%emt 0:01:15]} h5 {[%emt 0:08:14]} 23. Qb3 {[%emt 0:11:35]} Qxb3 {[%emt 0:17:48]} 24. axb3 {[%emt 0:00:16]} hxg4 {[%emt 0:00:10]} 25. Bxa7 {[%emt 0:01:10]} Rfd8 {[%emt 0:02:03]} 26. Bc5 {[%emt 0:01:10]} Ba6 {[%emt 0:06:19]} 27. Rfd1 {[%emt 0:01:47]} Rxd1+ {[%emt 0:14:45]} 28. Rxd1 {[%emt 0:00:07]} Rb8 {[%emt 0:00:33]} 29. Rd7 {[%emt 0:06:03]} Bb6 {[%emt 0:00:35]} 30. Bd6 {[%emt 0:02:35]} Bc8 {[%emt 0:00:29]} 31. Ne7+ {[%emt 0:00:53]} Kh7 {[%emt 0:00:05]} 32. Nxc8 {[%emt 0:01:09]} Rxc8 {[%emt 0:00:06]} 33. Kh2 {[%emt 0:02:19]} Kg6 {[%emt 0:00:28]} 34. Kg3 {[%emt 0:00:06]} f5 {[%emt 0:00:45]} 35. exf6 {[%emt 0:00:31]} gxf6 {[%emt 0:00:11]} 36. Kxg4 {[%emt 0:00:15]} f5+ {[%emt 0:00:17]} 37. Kf3 {[%emt 0:00:17]} Bd4 {[%emt 0:01:07]} 38. Bc7 {[%emt 0:06:21]} Bxb2 {[%emt 0:01:02]} 39. Rd6+ {[%emt 0:00:29]} Kf7 {[%emt 0:00:06]} 40. Rxc6 {[%emt 0:00:42]} Ra8 {[%emt 0:00:31] Ke4} 1-0

[Event "NOR-ch Elite 2019"]
[Site "Larvik"]
[Date "2019.07.07"]
[Round "3.1"]
[White "Hauge, Lars Oskar"]
[Black "Tari, Aryan"]
[Result "0-1"]
[ECO "A03"]
[WhiteElo "2476"]
[BlackElo "2620"]
[Annotator "RC"]
[PlyCount "118"]
[EventDate "2019.07.05"]
[EventType "swiss"]
[EventCountry "NOR"]
[SourceTitle "playchess.com"]
[Source "ChessBase"]
[SourceQuality "1"]
[TimeControl "40/5400+30:1800+30"]

1. f4 {[%emt 0:00:00]} d5 {[%emt 0:01:05]} 2. Nf3 {[%emt 0:00:02]} g6 {[%emt 0:00:23]} 3. g3 {[%emt 0:00:42]} c6 {[%emt 0:00:15]} 4. Bg2 {[%emt 0:02:45]} Qb6 {[%emt 0:00:21]} 5. Nc3 {[%emt 0:06:06]} Bg7 {[%emt 0:06:24]} 6. e3 {[%emt 0:12:34]} h5 {[%emt 0:03:14]} 7. d3 {[%emt 0:08:04]} Nh6 {[%emt 0:01:38]} 8. Qe2 {[%emt 0:07:00]} Bg4 {[%emt 0:09:37]} 9. Qf2 {[%emt 0:04:41]} Nd7 {[%emt 0:14:17]} 10. e4 {[%emt 0:03:58]} d4 {[%emt 0:01:29]} 11. Nd1 {[%emt 0:03:12]} e5 {[%emt 0:01:47]} 12. O-O {[%emt 0:01:46]} O-O-O {[%emt 0:06:13]} 13. a4 {[%emt 0:02:56]} Rhf8 {[%emt 0:09:45]} 14. b4 {[%emt 0:08:46]} f5 {[%emt 0:03:57]} 15. Nb2 {[%emt 0:01:27]} fxe4 {[%emt 0:02:13]} 16. Nc4 {[%emt 0:00:09]} Qc7 {[%emt 0:00:51]} 17. dxe4 {[%emt 0:00:05]} Be6 {[%emt 0:01:39]} 18. Qe2 {[%emt 0:04:59]} exf4 {[%emt 0:06:19]} 19. Bxf4 {[%emt 0:00:28]} Rxf4 {[%emt 0:00:22]} 20. gxf4 {[%emt 0:00:04]} d3 {[%emt 0:00:08]} 21. cxd3 {[%emt 0:00:00]} Bxa1 22. Rxa1 {[%emt 0:03:54]} Qxf4 {[%emt 0:02:48]} 23. e5 {[%emt 0:01:29]} Nf5 {[%emt 0:02:08]} 24. Re1 {[%emt 0:01:12]} Nb6 {[%emt 0:01:58]} 25. b5 {[%emt 0:00:57]} Nxc4 {[%emt 0:02:02]} 26. dxc4 {[%emt 0:00:04]} Qxc4 {[%emt 0:05:42]} 27. bxc6 {[%emt 0:02:55]} Qxc6 {[%emt 0:01:12]} 28. Qf2 {[%emt 0:03:15]} Bd5 {[%emt 0:06:57]} 29. e6 {[%emt 0:08:51]} Qb6 {[%emt 0:01:31]} 30. e7 {[%emt 0:02:45]} Qxf2+ {[%emt 0:01:42]} 31. Kxf2 {[%emt 0:00:03]} Re8 {[%emt 0:00:05]} 32. Rc1+ {[%emt 0:00:08]} Kb8 {[%emt 0:01:59]} 33. Ne5 {[%emt 0:00:31]} Rxe7 {[%emt 0:03:11]} 34. Nxg6 {[%emt 0:00:52]} Rd7 {[%emt 0:00:52]} 35. Bh3 {[%emt 0:05:22]} Be4 {[%emt 0:00:11]} 36. Rc5 {[%emt 0:01:54]} Rf7 {[%emt 0:01:09]} 37. Ne5 {[%emt 0:00:21]} Rc7 {[%emt 0:01:01]} 38. Nd7+ {[%emt 0:01:45]} Rxd7 {[%emt 0:01:31]} 39. Bxf5 {[%emt 0:00:04]} Bxf5 {[%emt 0:00:33]} 40. Rxf5 {[%emt 0:00:11]} Rd2+ {[%emt 0:00:28]} 41. Kg3 {[%emt 0:30:50]} h4+ {[%emt 0:03:05]} 42. Kxh4 {[%emt 0:00:00]} Rxh2+ {[%emt 0:02:14]} 43. Kg3 {[%emt 0:00:00]} Re2 {[%emt 0:00:40]} 44. Kf3 {[%emt 0:00:00]} Re1 {[%emt 0:00:58]} 45. Rh5 {[%emt 0:00:00]} Kc7 {[%emt 0:02:02]} 46. Rh6 {[%emt 0:00:00]} Ra1 {[%emt 0:02:00]} 47. Rh4 {[%emt 0:00:00]} Kb6 {[%emt 0:00:22]} 48. Rb4+ {[%emt 0:00:00]} Ka6 {[%emt 0:00:09]} 49. Ke4 {[%emt 0:00:00]} b6 {[%emt 0:00:32]} 50. Kd5 {[%emt 0:00:00]} Ka5 {[%emt 0:01:04]} 51. Rb2 {[%emt 0:00:00]} Rxa4 {[%emt 0:00:41]} 52. Kc6 {[%emt 0:00:00]} Ka6 {[%emt 0:01:32]} 53. Rc2 {[%emt 0:00:00]} b5 {[%emt 0:00:11]} 54. Kc5 {[%emt 0:00:00]} Ka5 {[%emt 0:00:08]} 55. Rc1 {[%emt 0:00:00]} Ra2 {[%emt 0:00:26]} 56. Rc3 {[%emt 0:00:00]} b4 {[%emt 0:00:26]} 57. Rc4 {[%emt 0:00:00]} b3 {[%emt 0:01:19]} 58. Rh4 {[%emt 0:00:00]} Rc2+ {[%emt 0:00:12]} 59. Kd4 {[%emt 0:00:00]} b2 {[%emt 0:00:22]} 0-1

[Event "NOR-ch Elite 2019"]
[Site "Larvik"]
[Date "2019.07.07"]
[Round "3.3"]
[White "Urkedal, Frode Olav Olsen"]
[Black "Holm, Kristian Stuvik"]
[Result "1/2-1/2"]
[ECO "A34"]
[WhiteElo "2566"]
[BlackElo "2469"]
[Annotator "ChessBase"]
[PlyCount "57"]
[EventDate "2019.07.05"]
[EventType "swiss"]
[EventCountry "NOR"]
[SourceTitle "playchess.com"]
[Source "ChessBase"]
[SourceQuality "1"]
[TimeControl "40/5400+30:1800+30"]

1. c4 {[%emt 0:00:00]} c5 {[%emt 0:01:34]} 2. Nf3 {[%emt 0:04:40]} Nf6 {[%emt 0:00:13]} 3. Nc3 {[%emt 0:03:06]} Nc6 {[%emt 0:00:38]} 4. g3 {[%emt 0:02:17]} d5 {[%emt 0:01:23]} 5. cxd5 {[%emt 0:00:44]} Nxd5 {[%emt 0:00:05]} 6. Bg2 {[%emt 0:00:05]} g6 {[%emt 0:00:06]} 7. d3 {[%emt 0:12:03]} Bg7 {[%emt 0:01:07]} 8. Bd2 {[%emt 0:00:14]} O-O {[%emt 0:00:29]} 9. h4 {[%emt 0:01:47]} c4 {[%emt 0:15:45]} 10. d4 {[%emt 0:20:31]} Nxc3 {[%emt 0:03:24]} 11. Bxc3 {[%emt 0:04:33]} Be6 {[%emt 0:00:15]} 12. Qc2 {[%emt 0:19:03]} Qb6 {[%emt 0:12:49]} 13. e3 {[%emt 0:08:49]} Nb4 {[%emt 0:04:20]} 14. Bxb4 {[%emt 0:01:06]} Qxb4+ {[%emt 0:00:07]} 15. Nd2 {[%emt 0:00:07]} Rac8 {[%emt 0:00:45]} 16. Qc3 {[%emt 0:02:46]} Qb5 {[%emt 0:02:57]} 17. O-O {[%emt 0:00:29]} Bd5 {[%emt 0:10:43]} 18. a4 {[%emt 0:01:45]} Qd7 {[%emt 0:00:51]} 19. Bxd5 {[%emt 0:01:28]} Qxd5 {[%emt 0:00:05]} 20. f4 {[%emt 0:00:13]} Rfd8 {[%emt 0:01:06]} 21. Rac1 {[%emt 0:00:31]} e5 {[%emt 0:03:15]} 22. fxe5 {[%emt 0:02:20]} Bxe5 {[%emt 0:00:33]} 23. dxe5 {[%emt 0:00:31]} Qxd2 {[%emt 0:00:17]} 24. Rf4 {[%emt 0:01:26]} Qxc3 {[%emt 0:02:10]} 25. Rxc3 {[%emt 0:00:15]} Rd5 {[%emt 0:01:45]} 26. Rcxc4 {[%emt 0:01:20]} Rxc4 {[%emt 0:00:05]} 27. Rxc4 {[%emt 0:00:11]} Rxe5 {[%emt 0:00:09]} 28. Kf2 {[%emt 0:01:45]} b5 {[%emt 0:00:22]} 29. axb5 {[%emt 0:00:23]} 1/2-1/2

[Event "NOR-ch Elite 2019"]
[Site "Larvik"]
[Date "2019.07.07"]
[Round "3.4"]
[White "Haldorsen, Benjamin"]
[Black "Notkevich, Benjamin Arvola"]
[Result "1/2-1/2"]
[ECO "A36"]
[WhiteElo "2444"]
[BlackElo "2497"]
[Annotator "ChessBase"]
[PlyCount "78"]
[EventDate "2019.07.05"]
[EventType "swiss"]
[EventCountry "NOR"]
[SourceTitle "playchess.com"]
[Source "ChessBase"]
[SourceQuality "1"]
[TimeControl "40/5400+30:1800+30"]

1. c4 {[%emt 0:00:00]} c5 {[%emt 0:00:00]} 2. Nc3 {[%emt 0:00:08]} g6 {[%emt 0:00:00]} 3. g3 {[%emt 0:00:34]} Bg7 {[%emt 0:00:00]} 4. Bg2 {[%emt 0:00:04]} Nc6 {[%emt 0:00:00]} 5. b3 {[%emt 0:00:20]} e6 {[%emt 0:00:24]} 6. Ba3 {[%emt 0:05:05]} Qa5 {[%emt 0:01:45]} 7. Qc1 {[%emt 0:05:18]} Nge7 {[%emt 0:08:58]} 8. h4 {[%emt 0:13:54]} h6 {[%emt 0:13:37]} 9. Bb2 {[%emt 0:09:14]} O-O {[%emt 0:02:51]} 10. Ne4 {[%emt 0:09:27]} e5 {[%emt 0:01:54]} 11. Bc3 {[%emt 0:01:12]} Qb6 {[%emt 0:00:25]} 12. Nd6 {[%emt 0:00:54]} Nb4 {[%emt 0:26:51]} 13. Nxc8 {[%emt 0:02:12]} Raxc8 {[%emt 0:00:04]} 14. a3 {[%emt 0:01:16]} Nbc6 {[%emt 0:05:57]} 15. Rb1 {[%emt 0:00:02]} Rfd8 {[%emt 0:01:03]} 16. h5 {[%emt 0:03:28]} g5 {[%emt 0:00:33]} 17. e4 {[%emt 0:01:21]} Nd4 {[%emt 0:03:57]} 18. Ne2 {[%emt 0:01:27]} Qe6 {[%emt 0:00:41]} 19. d3 {[%emt 0:04:02]} b5 {[%emt 0:02:59]} 20. Nxd4 {[%emt 0:01:53]} cxd4 {[%emt 0:00:47]} 21. Ba5 {[%emt 0:00:09]} Re8 {[%emt 0:00:42]} 22. O-O {[%emt 0:02:06]} Kh8 {[%emt 0:07:10]} 23. Qd1 {[%emt 0:08:18]} Rb8 {[%emt 0:00:48]} 24. Kh2 {[%emt 0:03:22]} Nc6 {[%emt 0:05:46]} 25. Bh3 {[%emt 0:05:58]} Qe7 {[%emt 0:00:09]} 26. Bb4 {[%emt 0:01:21]} Nxb4 {[%emt 0:03:31]} 27. axb4 {[%emt 0:00:05]} bxc4 {[%emt 0:02:36]} 28. bxc4 {[%emt 0:00:04]} Rxb4 {[%emt 0:00:16]} 29. Rxb4 {[%emt 0:01:53]} Qxb4 {[%emt 0:00:07]} 30. Bxd7 {[%emt 0:01:24]} Rb8 {[%emt 0:00:08]} 31. Bb5 {[%emt 0:00:40]} Bf8 {[%emt 0:05:44]} 32. Qf3 {[%emt 0:00:53]} Qe7 {[%emt 0:02:11]} 33. Ra1 {[%emt 0:00:31]} Rb6 {[%emt 0:00:20]} 34. Kg2 {[%emt 0:02:28]} Rf6 {[%emt 0:01:39]} 35. Rxa7 {[%emt 0:04:06]} Rxf3 {[%emt 0:02:25]} 36. Rxe7 {[%emt 0:00:05]} Rxf2+ {[%emt 0:00:56]} 37. Kxf2 {[%emt 0:00:06]} Bxe7 {[%emt 0:00:02]} 38. Ke2 {[%emt 0:01:17]} Kg7 {[%emt 0:00:13]} 39. g4 {[%emt 0:00:33]} Kf6 {[%emt 0:01:10]} 1/2-1/2

[Event "NOR-ch Elite 2019"]
[Site "Larvik"]
[Date "2019.07.07"]
[Round "3.5"]
[White "Haug, Johannes"]
[Black "Mikalsen, Erlend"]
[Result "1/2-1/2"]
[ECO "B51"]
[WhiteElo "2431"]
[BlackElo "2404"]
[Annotator "NA"]
[PlyCount "50"]
[EventDate "2019.07.05"]
[EventType "swiss"]
[EventCountry "NOR"]
[SourceTitle "playchess.com"]
[Source "ChessBase"]
[SourceQuality "1"]
[TimeControl "40/5400+30:1800+30"]

1. e4 {[%emt 0:00:00]} c5 {[%emt 0:11:41]} 2. Nf3 {[%emt 0:00:00]} d6 {[%emt 0:00:22]} 3. Bb5+ {[%emt 0:00:00]} Nd7 {[%emt 0:00:03]} 4. c3 {[%emt 0:00:01]} Ngf6 {[%emt 0:00:05]} 5. Qe2 {[%emt 0:00:05]} a6 {[%emt 0:06:07]} 6. Ba4 {[%emt 0:00:59]} b5 {[%emt 0:03:46]} 7. Bc2 {[%emt 0:00:27]} Bb7 {[%emt 0:01:29]} 8. d4 {[%emt 0:00:29]} e6 {[%emt 0:00:42]} 9. a4 {[%emt 0:00:37]} b4 {[%emt 0:02:35]} 10. a5 {[%emt 0:08:06]} bxc3 {[%emt 0:06:01]} 11. bxc3 {[%emt 0:02:18]} Qc7 {[%emt 0:02:30]} 12. O-O {[%emt 0:12:29]} Be7 {[%emt 0:00:38]} 13. Bf4 {[%emt 0:15:30]} Nh5 {[%emt 0:06:13]} 14. Be3 {[%emt 0:01:55]} Nhf6 {[%emt 0:04:12]} 15. Bf4 {[%emt 0:07:13]} Nh5 {[%emt 0:01:28]} 16. Bc1 {[%emt 0:06:32]} Nhf6 {[%emt 0:01:56]} 17. Bd3 {[%emt 0:02:37]} O-O {[%emt 0:00:52]} 18. Nbd2 {[%emt 0:00:55]} Rfe8 {[%emt 0:03:36]} 19. Re1 {[%emt 0:06:19]} Nf8 {[%emt 0:01:56]} 20. Nf1 {[%emt 0:07:20]} Ng6 {[%emt 0:00:50]} 21. Ng3 {[%emt 0:00:27]} Bf8 {[%emt 0:07:06]} 22. Bg5 {[%emt 0:08:06]} Nd7 {[%emt 0:03:20]} 23. Be3 {[%emt 0:00:30]} Nf6 {[%emt 0:05:05]} 24. Bg5 {[%emt 0:01:37]} Nd7 {[%emt 0:00:13]} 25. Be3 {[%emt 0:00:09]} Nf6 {[%emt 0:00:31]} 1/2-1/2

[Event "NOR-ch Elite 2019"]
[Site "Larvik"]
[Date "2019.07.07"]
[Round "3.6"]
[White "Mihajlov, Sebastian"]
[Black "Christiansen, Johan-Sebastian"]
[Result "1/2-1/2"]
[ECO "A49"]
[WhiteElo "2375"]
[BlackElo "2548"]
[Annotator "ChessBase"]
[PlyCount "175"]
[EventDate "2019.07.05"]
[EventType "swiss"]
[EventCountry "NOR"]
[SourceTitle "playchess.com"]
[Source "ChessBase"]
[SourceQuality "1"]
[TimeControl "40/5400+30:1800+30"]

1. d4 {[%emt 0:11:43]} Nf6 {[%emt 0:00:00]} 2. Nf3 {[%emt 0:00:07]} c5 {[%emt 0:00:54]} 3. c3 {[%emt 0:04:42]} g6 {[%emt 0:01:22]} 4. g3 {[%emt 0:03:35]} Qa5 {[%emt 0:00:53]} 5. dxc5 {[%emt 0:02:51]} Qxc5 {[%emt 0:00:09]} 6. Bg2 {[%emt 0:00:04]} Bg7 {[%emt 0:00:13]} 7. O-O {[%emt 0:00:04]} O-O {[%emt 0:00:13]} 8. Nbd2 {[%emt 0:04:55]} d6 {[%emt 0:01:00]} 9. e4 {[%emt 0:00:45]} Nc6 {[%emt 0:02:01]} 10. h3 {[%emt 0:03:41]} h6 {[%emt 0:08:52]} 11. Nb3 {[%emt 0:01:01]} Qb6 {[%emt 0:01:24]} 12. Be3 {[%emt 0:00:11]} Qc7 {[%emt 0:00:34]} 13. Qc2 {[%emt 0:03:09]} b6 {[%emt 0:05:54]} 14. Nbd4 {[%emt 0:04:00]} Na5 {[%emt 0:05:32]} 15. Nd2 {[%emt 0:19:59]} Bb7 {[%emt 0:02:21]} 16. c4 {[%emt 0:03:29]} Rac8 {[%emt 0:05:47]} 17. Rac1 {[%emt 0:00:05]} Qb8 {[%emt 0:02:12]} 18. Qb1 {[%emt 0:01:51]} Qa8 {[%emt 0:04:30]} 19. b3 {[%emt 0:02:38]} Rfd8 {[%emt 0:05:01]} 20. Rfd1 {[%emt 0:01:14]} Kh7 {[%emt 0:00:26]} 21. Kh2 {[%emt 0:00:45]} Nd7 {[%emt 0:11:33]} 22. Ne2 {[%emt 0:07:10]} Nc6 {[%emt 0:03:38]} 23. Nf1 {[%emt 0:03:40]} Qb8 {[%emt 0:03:33]} 24. f4 {[%emt 0:01:47]} Ba8 {[%emt 0:00:24]} 25. g4 {[%emt 0:00:18]} b5 {[%emt 0:05:43]} 26. Nfg3 {[%emt 0:00:37]} bxc4 {[%emt 0:11:00]} 27. Rxc4 {[%emt 0:00:06]} Bb7 {[%emt 0:00:03]} 28. Rdc1 {[%emt 0:02:47]} Qa8 {[%emt 0:05:48]} 29. b4 {[%emt 0:05:08]} a6 {[%emt 0:03:21]} 30. a4 {[%emt 0:00:29]} a5 {[%emt 0:02:44]} 31. b5 {[%emt 0:02:59]} Nb4 {[%emt 0:00:02]} 32. Rc7 {[%emt 0:00:51]} Qb8 {[%emt 0:01:45]} 33. Rxc8 {[%emt 0:00:37]} Rxc8 {[%emt 0:00:08]} 34. Qb3 {[%emt 0:00:18]} e6 {[%emt 0:01:36]} 35. Qd1 {[%emt 0:03:08]} d5 {[%emt 0:01:33]} 36. exd5 {[%emt 0:01:16]} Bxd5 {[%emt 0:00:39]} 37. Bxd5 {[%emt 0:00:04]} Nxd5 {[%emt 0:00:14]} 38. Bd2 {[%emt 0:00:06]} Rxc1 {[%emt 0:02:15]} 39. Qxc1 {[%emt 0:00:04]} Qa7 {[%emt 0:00:22]} 40. Qe1 {[%emt 0:01:27]} Nc5 {[%emt 0:01:19]} 41. Qf2 {[%emt 0:31:28]} Qe7 {[%emt 0:07:02]} 42. Bxa5 {[%emt 0:00:00]} Nxa4 {[%emt 0:00:36]} 43. f5 {[%emt 0:00:00]} Qb7 {[%emt 0:06:26]} 44. fxg6+ {[%emt 0:00:00]} fxg6 {[%emt 0:00:01]} 45. b6 {[%emt 0:00:00]} Qa6 {[%emt 0:03:26]} 46. Nf4 {[%emt 0:00:00]} Nxf4 {[%emt 0:13:50]} 47. Qxf4 {[%emt 0:00:00]} Nc5 {[%emt 0:01:38]} 48. Bc3 {[%emt 0:00:00]} e5 {[%emt 0:01:53]} 49. Qb4 {[%emt 0:02:30]} Qa2+ {[%emt 0:00:01]} 50. Qb2 {[%emt 0:00:18]} Qd5 {[%emt 0:00:52]} 51. Qb5 {[%emt 0:00:14]} Qa2+ {[%emt 0:00:11]} 52. Qb2 {[%emt 0:00:13]} Qf7 {[%emt 0:00:15]} 53. Qe2 {[%emt 0:00:44]} Qf6 {[%emt 0:00:34]} 54. Qe3 {[%emt 0:01:01]} Nd7 {[%emt 0:02:00]} 55. Ba5 {[%emt 0:01:45]} Qc6 {[%emt 0:00:14]} 56. Ne4 {[%emt 0:02:40]} Qd5 {[%emt 0:00:35]} 57. Qd2 {[%emt 0:01:24]} Nxb6 {[%emt 0:01:06]} 58. Qxd5 {[%emt 0:01:34]} Nxd5 {[%emt 0:00:01]} 59. Kg3 {[%emt 0:00:07]} Kg8 {[%emt 0:00:13]} 60. h4 {[%emt 0:00:05]} Kf7 {[%emt 0:00:14]} 61. h5 {[%emt 0:00:25]} gxh5 {[%emt 0:00:55]} 62. gxh5 {[%emt 0:00:06]} Ke6 {[%emt 0:00:24]} 63. Bd2 {[%emt 0:00:07]} Bf8 {[%emt 0:00:24]} 64. Kg4 {[%emt 0:00:06]} Nc7 {[%emt 0:01:06]} 65. Ng3 {[%emt 0:00:20]} Ne8 {[%emt 0:00:15]} 66. Ne4 {[%emt 0:00:13]} Kd5 {[%emt 0:00:53]} 67. Kf3 {[%emt 0:00:07]} Bg7 {[%emt 0:00:29]} 68. Ba5 {[%emt 0:00:37]} Ke6 {[%emt 0:00:45]} 69. Kg4 {[%emt 0:00:11]} Bf8 {[%emt 0:00:04]} 70. Bd2 {[%emt 0:00:06]} Kd5 {[%emt 0:00:30]} 71. Kf3 {[%emt 0:00:08]} Bg7 {[%emt 0:00:45]} 72. Be3 {[%emt 0:01:02]} Nc7 {[%emt 0:00:13]} 73. Ng3 {[%emt 0:00:43]} Ke6 {[%emt 0:00:18]} 74. Ne4 {[%emt 0:00:21]} Nd5 {[%emt 0:00:34]} 75. Bd2 {[%emt 0:00:06]} Ne7 {[%emt 0:00:21]} 76. Be3 {[%emt 0:02:08]} Nf5 {[%emt 0:00:07]} 77. Nf2 {[%emt 0:01:56]} Nxe3 {[%emt 0:01:19]} 78. Kxe3 {[%emt 0:00:05]} Kf5 {[%emt 0:00:02]} 79. Nd3 {[%emt 0:00:15]} Kg4 {[%emt 0:00:13]} 80. Nxe5+ {[%emt 0:00:07]} Bxe5 {[%emt 0:00:04]} 81. Kf2 {[%emt 0:00:03]} Kxh5 {[%emt 0:00:42]} 82. Kg2 {[%emt 0:00:05]} Kg4 {[%emt 0:00:04]} 83. Kg1 {[%emt 0:00:04]} h5 {[%emt 0:00:03]} 84. Kg2 {[%emt 0:00:06]} h4 {[%emt 0:00:02]} 85. Kg1 {[%emt 0:00:04]} h3 {[%emt 0:00:05]} 86. Kh1 {[%emt 0:00:03]} h2 {[%emt 0:00:05]} 87. Kg2 {[%emt 0:00:03]} h1=B+ {[%emt 0:00:04]} 88. Kxh1 {[%emt 0:00:04]} 1/2-1/2

[Event "NOR-ch Elite 2019"]
[Site "Larvik"]
[Date "2019.07.07"]
[Round "3.7"]
[White "Lie, Kjetil A."]
[Black "Risting, Eivind Olav"]
[Result "1-0"]
[ECO "A46"]
[WhiteElo "2538"]
[BlackElo "2314"]
[Annotator "ChessBase"]
[PlyCount "39"]
[EventDate "2019.07.05"]
[EventType "swiss"]
[EventCountry "NOR"]
[SourceTitle "playchess.com"]
[Source "ChessBase"]
[SourceQuality "1"]
[TimeControl "40/5400+30:1800+30"]

1. d4 {[%emt 0:00:00]} Nf6 {[%emt 0:00:00]} 2. Nf3 {[%emt 0:00:00]} e6 {[%emt 0:00:53]} 3. Bg5 {[%emt 0:00:52]} c5 {[%emt 0:04:15]} 4. d5 {[%emt 0:01:27]} exd5 {[%emt 0:06:07]} 5. e3 {[%emt 0:00:49]} d6 {[%emt 0:04:36]} 6. Nc3 {[%emt 0:05:08]} Be6 {[%emt 0:03:14]} 7. Bxf6 {[%emt 0:20:22]} Qxf6 {[%emt 0:00:40]} 8. Nxd5 {[%emt 0:00:08]} Bxd5 {[%emt 0:22:51]} 9. Qxd5 {[%emt 0:00:07]} Nc6 {[%emt 0:07:24]} 10. Ba6 {[%emt 0:18:01]} Qxb2 {[%emt 0:19:37]} 11. O-O {[%emt 0:00:34]} Qb6 {[%emt 0:00:16]} 12. Bc4 {[%emt 0:02:57]} O-O-O {[%emt 0:09:21]} 13. Ng5 {[%emt 0:10:52]} Ne5 {[%emt 0:04:11]} 14. Nxf7 {[%emt 0:03:39]} Nxf7 {[%emt 0:00:20]} 15. Qxf7 {[%emt 0:00:05]} d5 {[%emt 0:03:13]} 16. Bxd5 {[%emt 0:01:35]} Qc7 {[%emt 0:00:38]} 17. Qf5+ {[%emt 0:01:03]} Kb8 {[%emt 0:00:19]} 18. Bxb7 {[%emt 0:04:36]} Kxb7 {[%emt 0:02:05]} 19. Rab1+ {[%emt 0:00:18]} Ka6 {[%emt 0:00:28]} 20. Qe6+ {[%emt 0:01:41]} 1-0

[Event "NOR-ch Elite 2019"]
[Site "Larvik"]
[Date "2019.07.07"]
[Round "3.8"]
[White "Getz, Nicolai"]
[Black "Ranaldi, Lucas"]
[Result "1-0"]
[ECO "A36"]
[WhiteElo "2377"]
[BlackElo "2262"]
[Annotator "NA"]
[PlyCount "80"]
[EventDate "2019.07.05"]
[EventType "swiss"]
[EventCountry "NOR"]
[SourceTitle "playchess.com"]
[Source "ChessBase"]
[SourceQuality "1"]
[TimeControl "40/5400+30:1800+30"]

1. g3 {[%emt 0:00:00]} c5 {[%emt 0:00:00]} 2. c4 {[%emt 0:01:00]} Nc6 {[%emt 0:00:18]} 3. Bg2 {[%emt 0:03:30]} g6 {[%emt 0:00:12]} 4. Nc3 {[%emt 0:02:32]} Bg7 {[%emt 0:00:09]} 5. b3 {[%emt 0:01:12]} e6 {[%emt 0:12:54]} 6. Bb2 {[%emt 0:00:22]} Nge7 {[%emt 0:00:37]} 7. h4 {[%emt 0:05:57]} h6 {[%emt 0:11:32]} 8. Nh3 {[%emt 0:16:05]} O-O {[%emt 0:10:06]} 9. Nf4 {[%emt 0:01:21]} d6 {[%emt 0:01:30]} 10. d3 {[%emt 0:02:13]} Rb8 {[%emt 0:03:49]} 11. Qd2 {[%emt 0:06:15]} a6 {[%emt 0:03:21]} 12. O-O {[%emt 0:08:02]} b6 {[%emt 0:06:27]} 13. e3 {[%emt 0:14:19]} Bb7 {[%emt 0:01:23]} 14. Ne4 {[%emt 0:00:31]} e5 {[%emt 0:03:20]} 15. Ne2 {[%emt 0:01:40]} d5 {[%emt 0:09:27]} 16. N4c3 {[%emt 0:00:42]} Na5 {[%emt 0:14:11]} 17. Qc2 {[%emt 0:08:49]} d4 {[%emt 0:02:08]} 18. exd4 {[%emt 0:00:53]} Bxg2 {[%emt 0:00:56]} 19. Kxg2 {[%emt 0:00:03]} cxd4 {[%emt 0:01:25]} 20. Ne4 {[%emt 0:02:13]} f5 {[%emt 0:00:34]} 21. Nd2 {[%emt 0:00:04]} Nac6 {[%emt 0:01:05]} 22. Ba3 {[%emt 0:00:46]} a5 {[%emt 0:02:46]} 23. Bxe7 {[%emt 0:02:21]} Qxe7 {[%emt 0:00:43]} 24. a3 {[%emt 0:00:04]} Rbe8 {[%emt 0:05:08]} 25. b4 {[%emt 0:04:36]} axb4 {[%emt 0:03:23]} 26. axb4 {[%emt 0:00:02]} g5 {[%emt 0:03:22]} 27. hxg5 {[%emt 0:01:20]} hxg5 {[%emt 0:00:01]} 28. b5 {[%emt 0:07:23]} Nd8 {[%emt 0:00:53]} 29. c5 {[%emt 0:03:50]} bxc5 {[%emt 0:00:18]} 30. Qc4+ {[%emt 0:01:21]} Rf7 {[%emt 0:00:33]} 31. f3 {[%emt 0:00:11]} Qb7 {[%emt 0:00:57]} 32. Nb3 {[%emt 0:01:33]} Bf8 {[%emt 0:01:18]} 33. Ra6 {[%emt 0:00:19]} Kg7 {[%emt 0:00:27]} 34. Nxc5 {[%emt 0:02:31]} Bxc5 {[%emt 0:00:02]} 35. Qxc5 {[%emt 0:00:07]} g4 {[%emt 0:00:23]} 36. Qd6 {[%emt 0:00:25]} gxf3+ {[%emt 0:00:55]} 37. Rxf3 {[%emt 0:00:01]} e4 {[%emt 0:01:16]} 38. dxe4 {[%emt 0:01:42]} Ne6 {[%emt 0:00:37]} 39. Qe5+ {[%emt 0:00:24]} Rf6 {[%emt 0:00:31]} 40. Nxd4 {[%emt 0:01:52]} Kf7 {[%emt 0:00:28]} 1-0